bitfinex/quotes_BTCUSD_20220405
["timestamp","ask_amount","ask_price","bid_price","bid_amount"]
[1649140833085,0.17588008,46671.0,46670.0,0.001]
[1649140833386,0.33706871,46672.0,46670.0,0.001]
[1649140834435,0.17588648,46671.0,46670.0,0.001]
[1649140834636,0.33706871,46672.0,46670.0,0.001]
[1649140834637,0.51295519,46672.0,46670.0,0.001]
[1649140834936,0.51295519,46672.0,46667.0,0.02242392]
[1649140835640,0.2,46669.0,46667.0,0.02242392]
[1649140835741,0.2,46669.0,46668.0,0.03854064]
[1649140838038,0.2,46669.0,46668.0,0.03930027]
[1649140839891,0.2,46669.0,46668.0,0.03904897]
[1649140841798,0.2,46669.0,46668.0,0.04006195]
[1649140843407,0.05,46672.0,46668.0,0.04006195]
[1649140843503,0.05,46672.0,46668.0,0.10864731]
[1649140843602,0.00058743,46674.0,46669.0,0.03098859]
[1649140843704,0.05031045,46675.0,46669.0,0.08454959]
[1649140843805,0.00031045,46675.0,46669.0,0.08454959]
[1649140844003,0.00054753,46674.0,46669.0,0.08454959]
[1649140844505,0.00054753,46674.0,46669.0,0.13811059]
[1649140844905,0.00031045,46675.0,46669.0,0.13811059]
[1649140845207,0.00054628,46674.0,46669.0,0.13811059]
[1649140846196,0.00201263,46673.0,46669.0,0.13811059]
[1649140848899,0.00201263,46673.0,46669.0,0.107122]
[1649140849987,0.2,46671.0,46669.0,0.107122]
[1649140850588,0.2,46671.0,46669.0,1.72531935]
[1649140850839,0.00201263,46673.0,46669.0,1.94876657]
[1649140851239,0.00201263,46673.0,46670.0,0.073787]
[1649140852390,0.00402465,46671.0,46670.0,0.073787]
[1649140852492,0.00402465,46671.0,46670.0,0.27059959]
[1649140854194,0.00201353,46671.0,46670.0,0.27059959]
[1649140854398,0.00201353,46671.0,46670.0,0.41905253]
[1649140854495,0.00201353,46671.0,46670.0,0.35547898]
[1649140855651,0.00201353,46671.0,46670.0,0.15866639]
[1649140856201,0.00774587,46671.0,46670.0,0.15866639]
[1649140857032,0.00774587,46671.0,46670.0,0.32517133]
[1649140857633,0.00764463,46671.0,46670.0,0.32517133]
[1649140859888,0.00764463,46671.0,46670.0,0.15866639]
[1649140861985,0.00817103,46671.0,46670.0,0.15866639]
[1649140864962,0.00031045,46675.0,46670.0,0.15866639]
[1649140865062,0.00031045,46675.0,46670.0,0.073787]
[1649140865362,0.00031045,46675.0,46670.0,0.25005723]
[1649140865864,0.00934386,46671.0,46670.0,0.25005723]
[1649140865965,0.00934386,46671.0,46670.0,0.15866639]
[1649140866663,0.00934386,46671.0,46670.0,0.33493662]
[1649140867614,0.00934386,46671.0,46670.0,0.30394962]
[1649140868237,0.00700639,46671.0,46670.0,0.30394962]
[1649140869792,0.00700639,46671.0,46670.0,0.12767939]
[1649140872944,0.00700639,46671.0,46670.0,0.30394962]
[1649140876394,0.00700639,46671.0,46670.0,0.6333377]
[1649140878699,0.00700639,46671.0,46670.0,0.45706747]
[1649140878799,0.00700639,46671.0,46670.0,0.6333377]
[1649140883787,0.00700639,46671.0,46670.0,0.62787474]
[1649140884743,0.00700639,46671.0,46670.0,0.45160451]
[1649140891138,0.00700639,46671.0,46670.0,0.37218808]
[1649140892293,0.00700639,46671.0,46670.0,0.0428]
[1649140892794,0.00700639,46671.0,46669.0,0.15787344]
[1649140893093,0.00700639,46671.0,46669.0,0.37818029]
[1649140894392,0.00700639,46671.0,46669.0,0.32461929]
[1649140895047,0.00235042,46671.0,46669.0,0.10431244]
[1649140895144,0.00235042,46671.0,46669.0,0.32468852]
[1649140897049,0.00705465,46671.0,46669.0,0.32468852]
[1649140897916,0.00705465,46671.0,46669.0,0.31332161]
[1649140899221,0.00205465,46671.0,46669.0,0.31332161]
[1649140901075,0.00233487,46671.0,46670.0,0.32941971]
[1649140902189,0.00233487,46671.0,46669.0,0.31332161]
[1649140903192,0.00233487,46671.0,46670.0,0.32941831]
[1649140903795,0.00233487,46671.0,46670.0,0.54979439]
[1649140905399,0.00802382,46671.0,46670.0,0.54979439]
[1649140907406,0.01086856,46671.0,46670.0,0.54979439]
[1649140915596,0.01086856,46671.0,46670.0,0.32941831]
[1649140915698,0.01086856,46671.0,46670.0,0.54979439]
[1649140915898,0.01086856,46671.0,46670.0,0.32941831]
[1649140915997,0.01086856,46671.0,46670.0,0.54979439]
[1649140916450,0.01086856,46671.0,46670.0,0.32941831]
[1649140916697,0.01086856,46671.0,46669.0,0.27037608]
[1649140919709,0.01086856,46671.0,46669.0,0.05]
[1649140920256,0.01086856,46671.0,46670.0,0.17629515]
[1649140920416,0.01086856,46671.0,46669.0,0.05]
[1649140925067,0.00177291,46671.0,46669.0,0.2]
[1649140925371,0.00177291,46671.0,46670.0,0.17628261]
[1649140925671,0.00177291,46671.0,46670.0,0.22628261]
[1649140926170,0.00286745,46671.0,46670.0,0.22628261]
[1649140928293,0.00286745,46671.0,46669.0,0.05]
[1649140928392,0.00286745,46671.0,46670.0,0.17627781]
[1649140928492,0.0084203,46671.0,46670.0,0.1775054]
[1649140929094,0.0084203,46671.0,46670.0,0.00122759]
[1649140930501,0.0084203,46671.0,46670.0,0.17750247]
[1649140934384,0.0084203,46671.0,46670.0,0.00122759]
[1649140940760,0.0084203,46671.0,46670.0,0.17750076]
[1649140941363,0.0084203,46671.0,46670.0,0.00122759]
[1649140942466,0.0084203,46671.0,46670.0,0.17750045]
[1649140943223,0.0084203,46671.0,46670.0,0.00122759]
[1649140944127,0.0084203,46671.0,46670.0,0.17750094]
[1649140945929,0.0084203,46671.0,46670.0,0.00122759]
[1649140946656,0.0084203,46671.0,46670.0,0.17751605]
[1649140947509,1.76941115,46666.0,46662.0,0.41555959]
[1649140947611,1.18168313,46666.0,46665.0,1.44539004]
[1649140947709,1.18168313,46666.0,46665.0,1.18102182]
[1649140949208,1.18168313,46666.0,46665.0,1.51049014]
[1649140950902,1.18168313,46666.0,46665.0,1.56405414]
[1649140951204,1.18168313,46666.0,46665.0,1.51049014]
[1649140951303,1.19032083,46666.0,46665.0,1.51156466]
[1649140952257,1.19032083,46666.0,46665.0,1.18209634]
[1649140955182,1.19032083,46666.0,46665.0,0.09426282]
[1649140955381,1.19032083,46666.0,46665.0,0.71299271]
[1649140956583,1.19032083,46666.0,46665.0,0.93332462]
[1649140957184,1.19301424,46666.0,46665.0,0.9322504]
[1649140959754,1.19301424,46666.0,46665.0,0.71191849]
[1649140959956,1.19301424,46666.0,46665.0,0.93225012]
[1649140960707,1.19301424,46666.0,46665.0,0.97505012]
[1649140961108,1.19301424,46666.0,46665.0,1.30448773]
[1649140961797,1.19301424,46666.0,46665.0,1.40224737]
[1649140962148,1.19301424,46666.0,46665.0,1.18191574]
[1649140964005,1.19301424,46666.0,46665.0,1.18407226]
[1649140965213,1.19301424,46666.0,46665.0,1.18306826]
[1649140967043,1.41661941,46666.0,46665.0,1.18306826]
[1649140967244,1.19301424,46666.0,46665.0,1.18306826]
[1649140968844,1.19301424,46666.0,46665.0,1.05650996]
[1649140969047,1.49301424,46666.0,46665.0,1.04598928]
[1649140969179,1.49301424,46666.0,46665.0,1.12236995]
[1649140969277,1.49301424,46666.0,46665.0,0.94608928]
[1649140969922,1.49301424,46666.0,46665.0,0.61665167]
[1649140970122,1.54301424,46666.0,46665.0,0.61665167]
[1649140970231,1.24301424,46666.0,46665.0,0.61665167]
[1649140970630,1.44301424,46666.0,46664.0,0.001]
[1649140970728,0.3,46665.0,46664.0,0.001]
[1649140970825,0.32649977,46665.0,46664.0,0.001]
[1649140971125,0.50247492,46665.0,46664.0,0.001]
[1649140971526,0.32649977,46665.0,46664.0,0.001]
[1649140972474,0.3,46665.0,46664.0,0.001]
[1649140972673,1.63982422,46666.0,46664.0,0.001]
[1649140972674,1.61905422,46666.0,46664.0,0.001]
[1649140972776,0.3,46665.0,46664.0,0.001]
[1649140972916,1.61905422,46666.0,46664.0,0.001]
[1649140973059,0.3,46665.0,46664.0,0.001]
[1649140975011,0.30285266,46665.0,46664.0,0.001]
[1649140975866,0.30291735,46665.0,46664.0,0.001]
[1649140977881,0.00291735,46665.0,46664.0,0.001]
[1649140977984,0.30291735,46665.0,46664.0,0.001]
[1649140978081,0.00291735,46665.0,46664.0,0.001]
[1649140978231,0.30291735,46665.0,46664.0,0.001]
[1649140978330,0.00291735,46665.0,46664.0,0.001]
[1649140978431,0.32941246,46665.0,46664.0,0.001]
[1649140979536,0.30291735,46665.0,46664.0,0.001]
[1649140979989,0.00285266,46665.0,46664.0,0.001]
[1649140985363,0.03254715,46657.0,46644.0,0.05718]
[1649140985464,0.03254715,46657.0,46656.0,0.03829217]
[1649140986064,0.03254715,46657.0,46656.0,0.0274501]
[1649140986466,0.03254715,46657.0,46656.0,0.0810241]
[1649140989058,0.04451428,46657.0,46656.0,0.0810241]
[1649140991806,0.04451428,46657.0,46656.0,0.0274501]
[1649140995508,0.04451428,46657.0,46656.0,0.35691222]
[1649141005111,0.04451428,46657.0,46656.0,0.0274501]
[1649141008063,0.04451428,46657.0,46656.0,0.35698589]
[1649141010115,0.04451428,46657.0,46656.0,0.53326656]
[1649141012169,0.04451428,46657.0,46656.0,0.35698589]
[1649141012971,0.04451428,46657.0,46656.0,0.0274501]
[1649141014203,0.04451428,46657.0,46656.0,0.35697993]
[1649141015556,0.03553708,46657.0,46656.0,0.35697993]
[1649141015956,0.04406812,46657.0,46656.0,0.35697993]
[1649141016355,0.04406812,46657.0,46656.0,0.0274501]
[1649141018415,0.04122444,46657.0,46656.0,0.0274501]
[1649141020473,0.04122444,46657.0,46656.0,0.35698875]
[1649141022367,0.04122444,46657.0,46656.0,0.0274501]
[1649141023368,0.04122444,46657.0,46656.0,0.35702582]
[1649141023571,0.34122444,46657.0,46656.0,0.53337192]
[1649141023776,0.34122444,46657.0,46656.0,0.35702582]
[1649141024273,0.34122444,46657.0,46656.0,0.0274501]
[1649141025076,0.39122444,46657.0,46656.0,0.0274501]
[1649141025814,0.09122444,46657.0,46656.0,0.0274501]
[1649141025915,0.04122444,46657.0,46656.0,0.0274501]
[1649141028970,0.34122444,46657.0,46656.0,0.0274501]
[1649141029072,0.39122444,46657.0,46656.0,0.0274501]
[1649141031815,0.39122444,46657.0,46655.0,0.00355931]
[1649141032718,0.09122444,46657.0,46655.0,0.00355931]
[1649141032817,0.04122444,46657.0,46655.0,0.00355931]
[1649141045515,0.04122444,46657.0,46655.0,0.00164816]
[1649141046918,0.04122444,46657.0,46655.0,0.001]
[1649141048941,0.04122444,46657.0,46656.0,0.01084406]
[1649141051296,0.04122444,46657.0,46656.0,0.01225048]
[1649141067064,0.04122444,46657.0,46656.0,0.18855549]
[1649141067659,0.04122444,46657.0,46656.0,0.01225048]
[1649141068010,0.04122444,46657.0,46656.0,0.18863121]
[1649141073901,0.04122444,46657.0,46656.0,0.01225048]
[1649141074005,0.04122444,46657.0,46656.0,0.18863121]
[1649141074972,0.04122444,46657.0,46656.0,0.01225048]
[1649141075569,0.03553708,46657.0,46656.0,0.01225048]
[1649141076170,0.04109668,46657.0,46656.0,0.01225048]
[1649141077123,0.04109668,46657.0,46656.0,0.0120731]
[1649141084492,0.04377903,46657.0,46656.0,0.01084406]
[1649141094341,0.34377903,46657.0,46656.0,0.01084406]
[1649141095791,0.04377903,46657.0,46656.0,0.01084406]
[1649141098821,0.34377903,46657.0,46656.0,0.01084406]
[1649141098925,0.5197346,46657.0,46655.0,0.001]
[1649141099026,0.47598232,46656.0,46655.0,0.001]
[1649141099124,0.50248544,46656.0,46655.0,0.001]
[1649141099228,0.59143544,46656.0,46655.0,0.001]
[1649141099324,0.41545312,46656.0,46655.0,0.001]
[1649141099426,0.41545312,46656.0,46655.0,0.00089121]
[1649141101132,0.36545312,46656.0,46655.0,0.00089121]
[1649141101335,0.32650312,46656.0,46655.0,0.00089121]
[1649141101633,0.50245756,46656.0,46655.0,0.00089121]
[1649141101832,0.50246244,46656.0,46655.0,0.00089121]
[1649141102283,2.11435561,46656.0,46655.0,0.00089121]
[1649141102686,2.1199953,46656.0,46655.0,0.00089121]
[1649141102888,1.94403598,46656.0,46655.0,0.00089121]
[1649141103589,2.11998345,46656.0,46655.0,0.00089121]
[1649141105709,0.053593,46654.0,46652.0,0.0062884]
[1649141105810,0.053593,46654.0,46653.0,0.00059063]
[1649141105908,0.353593,46654.0,46653.0,0.00059063]
[1649141106462,0.35350412,46654.0,46653.0,0.00059063]
[1649141106761,0.35350412,46654.0,46652.0,0.0062884]
[1649141106862,0.3,46653.0,46652.0,0.0062884]
[1649141106964,0.05350412,46654.0,46652.0,0.0062884]
[1649141109028,0.01029148,46653.0,46652.0,0.0062884]
[1649141109329,0.0116135,46653.0,46652.0,0.0062884]
[1649141111285,0.01723506,46653.0,46652.0,0.0062884]
[1649141113431,0.02004557,46653.0,46652.0,0.0062884]
[1649141114083,0.02004557,46653.0,46652.0,0.02393092]
[1649141114487,0.32004557,46653.0,46652.0,0.02393092]
[1649141116240,0.02004557,46653.0,46652.0,0.02393092]
[1649141118449,0.32004557,46653.0,46652.0,0.02393092]
[1649141119477,0.02004557,46653.0,46652.0,0.02393092]
[1649141126230,0.02004557,46653.0,46652.0,0.17238386]
[1649141126330,0.02004557,46653.0,46652.0,0.02393092]
[1649141126481,0.02004557,46653.0,46652.0,0.11822707]
[1649141126582,0.02004557,46653.0,46652.0,0.16102707]
[1649141126814,0.02004557,46653.0,46652.0,0.33740129]
[1649141128071,0.02010859,46653.0,46652.0,0.33740129]
[1649141129419,0.02010859,46653.0,46652.0,0.66715679]
[1649141129720,0.02010859,46653.0,46652.0,0.49078257]
[1649141130541,0.02010859,46653.0,46652.0,2.14989877]
[1649141131348,0.02010859,46653.0,46652.0,1.82014327]
[1649141132349,0.02010859,46653.0,46652.0,1.99650381]
[1649141132797,0.02010859,46653.0,46652.0,1.82014327]
[1649141133748,0.02010859,46653.0,46652.0,1.99650381]
[1649141135432,0.02010859,46653.0,46652.0,0.33738761]
[1649141135735,0.76173384,46662.0,46659.0,0.00770373]
[1649141135832,0.35,46661.0,46659.0,0.00770373]
[1649141135932,0.3,46660.0,46659.0,0.00770373]
[1649141136032,0.47604551,46660.0,46659.0,0.00770373]
[1649141136334,0.47604551,46660.0,46659.0,0.02534625]
[1649141138051,0.48219761,46660.0,46659.0,0.02534625]
[1649141140257,0.18219761,46660.0,46659.0,0.02534625]
[1649141142793,0.45890092,46660.0,46659.0,0.02534625]
[1649141142988,0.48219761,46660.0,46659.0,0.02534625]
[1649141143838,0.18219761,46660.0,46659.0,0.02534625]
[1649141143939,0.18277219,46660.0,46659.0,0.02534625]
[1649141144541,0.18277219,46660.0,46659.0,0.02392505]
[1649141148257,0.18358917,46660.0,46659.0,0.02392505]
[1649141148355,0.18358917,46660.0,46659.0,0.00962505]
[1649141148561,0.18358917,46660.0,46658.0,0.05542166]
[1649141148813,0.18358917,46660.0,46659.0,0.00962505]
[1649141149556,0.06469198,46660.0,46659.0,0.00962505]
[1649141149658,0.3,46662.0,46661.0,0.002]
[1649141149659,0.08490713,46662.0,46661.0,0.002]
[1649141149753,0.21994447,46663.0,46661.0,0.002]
[1649141150358,0.21994447,46663.0,46661.0,0.05557832]
[1649141153554,0.21994447,46662.0,46661.0,0.05557832]
[1649141154805,0.22505654,46662.0,46661.0,0.05557832]
[1649141156507,0.22372139,46662.0,46661.0,0.05557832]
[1649141159146,0.22372139,46662.0,46661.0,0.06520337]
[1649141160097,0.22372139,46662.0,46661.0,0.06674622]
[1649141160710,0.00377692,46662.0,46661.0,0.06674622]
[1649141165653,0.00377692,46662.0,46660.0,0.0999]
[1649141165752,0.22014053,46661.0,46658.0,0.1843879]
[1649141165853,0.22014053,46661.0,46659.0,0.00054963]
[1649141166452,0.4964719,46661.0,46659.0,0.10771163]
[1649141166553,0.22014053,46661.0,46659.0,0.10771163]
[1649141166754,0.22014053,46661.0,46659.0,0.26843884]
[1649141166854,0.22014053,46661.0,46659.0,0.26788921]
[1649141168338,0.22014053,46660.0,46659.0,0.16072721]
[1649141168489,0.22014053,46660.0,46658.0,0.33841981]
[1649141168587,0.52687037,46660.0,46658.0,0.33841981]
[1649141168688,0.22351695,46660.0,46658.0,0.33841981]
[1649141168787,0.22351695,46660.0,46658.0,0.23851981]
[1649141168989,0.22351695,46660.0,46658.0,0.13136281]
[1649141169193,0.22351695,46660.0,46658.0,0.13081332]
[1649141169491,0.22351695,46660.0,46658.0,0.18439232]
[1649141170495,0.22689116,46660.0,46658.0,0.18439232]
[1649141173467,0.22689116,46660.0,46659.0,0.3]
[1649141173564,0.22689116,46660.0,46659.0,0.39428908]
[1649141173666,0.00675063,46660.0,46659.0,0.39428908]
[1649141173765,0.18290794,46660.0,46659.0,0.39428908]
[1649141174216,0.00675063,46660.0,46659.0,0.39428908]
[1649141174312,0.00675063,46660.0,46659.0,0.09428908]
[1649141174813,0.18290794,46660.0,46659.0,0.09428908]
[1649141178662,0.00696929,46660.0,46659.0,0.09428908]
[1649141179197,0.18311571,46660.0,46659.0,0.09428908]
[1649141185337,0.18311571,46660.0,46658.0,0.33429232]
[1649141185441,0.17612423,46659.0,46658.0,0.33429232]
[1649141185535,0.17612423,46659.0,46658.0,0.23439232]
[1649141185636,0.17612423,46659.0,46658.0,0.28439232]
[1649141187254,0.19025963,46660.0,46658.0,0.28439232]
[1649141188558,0.00358315,46659.0,46658.0,0.28439232]
[1649141195608,0.17970738,46659.0,46658.0,0.28439232]
[1649141196005,0.17970738,46659.0,46658.0,0.1191821]
[1649141196409,0.17970738,46659.0,46658.0,0.0156031]
[1649141196611,0.00358315,46659.0,46658.0,0.0656031]
[1649141196709,0.29321989,46659.0,46658.0,0.0156031]
[1649141197113,0.29321989,46659.0,46658.0,0.001]
[1649141197263,0.51336042,46659.0,46658.0,0.001]
[1649141198354,0.29321989,46659.0,46658.0,0.001]
[1649141199260,0.51336042,46659.0,46658.0,0.001]
[1649141199362,0.29321989,46659.0,46658.0,0.001]
[1649141199458,0.69264889,46659.0,46658.0,0.001]
[1649141199559,0.95681898,46659.0,46658.0,0.0002538]
[1649141199661,0.69264889,46659.0,46658.0,0.0002538]
[1649141200013,0.44581215,46659.0,46658.0,0.0002538]
[1649141201159,0.70991569,46659.0,46658.0,0.0002538]
[1649141201360,0.38901669,46659.0,46658.0,0.0002538]
[1649141201909,0.34621669,46659.0,46658.0,0.0002538]
[1649141202055,0.26768669,46659.0,46658.0,0.0002538]
[1649141202359,0.00358315,46659.0,46658.0,0.0002538]
[1649141202456,0.22366023,46659.0,46658.0,0.0002538]
[1649141203759,0.00358315,46659.0,46658.0,0.0002538]
[1649141203861,0.32448215,46659.0,46658.0,0.0002538]
[1649141205114,0.32514219,46659.0,46658.0,0.0002538]
[1649141207666,0.54520577,46659.0,46658.0,0.0002538]
[1649141207962,0.22430677,46659.0,46658.0,0.0002538]
[1649141208712,0.54520577,46659.0,46658.0,0.0002538]
[1649141210103,0.54527243,46659.0,46658.0,0.0002538]
[1649141213196,0.32520885,46659.0,46658.0,0.0002538]
[1649141214296,0.00430985,46659.0,46658.0,0.0002538]
[1649141215399,0.32520885,46659.0,46658.0,0.0002538]
[1649141217362,0.00430985,46659.0,46658.0,0.0002538]
[1649141217461,0.32520885,46659.0,46658.0,0.0002538]
[1649141219418,0.00430985,46659.0,46658.0,0.0002538]
[1649141219518,0.00430985,46659.0,46658.0,0.00017394]
[1649141219720,0.32520885,46659.0,46658.0,0.00017394]
[1649141222463,0.32506813,46659.0,46658.0,0.00017394]
[1649141223167,0.83554621,46659.0,46658.0,0.00017394]
[1649141223271,0.61548263,46659.0,46658.0,2.677e-05]
[1649141224656,0.83550989,46659.0,46658.0,2.677e-05]
[1649141225208,0.54509539,46659.0,46658.0,2.677e-05]
[1649141226062,0.25309395,46656.0,46650.0,0.08327938]
[1649141226264,0.25309395,46656.0,46651.0,0.05]
[1649141226363,0.42912922,46656.0,46651.0,0.05]
[1649141226563,0.42912922,46656.0,46653.0,0.053597]
[1649141227066,0.42912922,46656.0,46654.0,0.0999]
[1649141227167,0.42912922,46656.0,46654.0,0.15349573]
[1649141227715,0.42912922,46656.0,46654.0,0.05359573]
[1649141228185,6.61e-05,46655.0,46654.0,0.05359573]
[1649141229188,0.00416447,46655.0,46654.0,0.05359573]
[1649141229588,0.18019974,46655.0,46654.0,0.05359573]
[1649141229738,0.50109874,46655.0,46654.0,0.05359573]
[1649141229837,0.18019974,46655.0,46654.0,0.05359573]
[1649141229938,0.50109874,46655.0,46654.0,0.05359573]
[1649141230897,0.32506347,46655.0,46652.0,0.00061962]
[1649141230997,0.17604265,46653.0,46652.0,0.00061962]
[1649141231709,0.17604265,46653.0,46651.0,0.10719115]
[1649141232102,0.41667524,46653.0,46651.0,0.10719115]
[1649141232207,0.24063259,46653.0,46651.0,0.10719115]
[1649141233106,0.24472923,46653.0,46651.0,0.10719115]
[1649141234211,6.384e-05,46652.0,46651.0,0.10719115]
[1649141235451,0.00774372,46652.0,46651.0,0.10719115]
[1649141236451,0.00774372,46652.0,46650.0,0.001]
[1649141237652,0.00774372,46652.0,46650.0,0.054596]
[1649141237755,0.00774372,46652.0,46651.0,0.10719115]
[1649141238253,0.18378637,46652.0,46650.0,0.05459501]
[1649141241137,0.17604265,46651.0,46650.0,0.05459501]
[1649141241336,0.18378637,46652.0,46650.0,0.05459501]
[1649141243309,0.18378637,46652.0,46650.0,0.04459501]
[1649141243817,0.17604265,46651.0,46650.0,0.04459501]
[1649141244014,0.00774372,46652.0,46650.0,0.04459501]
[1649141244113,6.372e-05,46651.0,46650.0,0.04459501]
[1649141244414,0.17614203,46651.0,46650.0,0.04459501]
[1649141244919,6.372e-05,46651.0,46650.0,0.001]
[1649141246571,0.0039027,46651.0,46650.0,0.001]
[1649141247216,0.17997573,46651.0,46650.0,0.001]
[1649141247466,0.0039027,46651.0,46650.0,0.001]
[1649141248066,0.17997573,46651.0,46650.0,0.00099]
[1649141256060,0.75,46650.0,46647.0,0.0814985]
[1649141256163,0.92607303,46650.0,46647.0,0.0814985]
[1649141256509,0.92607303,46650.0,46647.0,0.001]
[1649141256710,0.92607303,46650.0,46649.0,0.053593]
[1649141258005,0.9299099,46650.0,46649.0,0.053593]
[1649141258505,0.1799099,46650.0,46649.0,0.053593]
[1649141258910,0.00383687,46650.0,46649.0,0.053593]
[1649141260010,0.01151164,46650.0,46649.0,0.053593]
[1649141260962,0.01151164,46650.0,46649.0,0.2871671]
[1649141261162,0.01151164,46650.0,46649.0,0.053593]
[1649141262034,0.01157524,46650.0,46649.0,0.053593]
[1649141263085,0.01157524,46650.0,46649.0,1.49758011]
[1649141263485,0.01157524,46650.0,46649.0,1.48130406]
[1649141264636,0.01201881,46650.0,46649.0,1.48130406]
[1649141266260,0.01201881,46650.0,46649.0,0.13162826]
[1649141267467,0.01201881,46650.0,46649.0,0.09431131]
[1649141270464,0.18809184,46650.0,46649.0,0.09431131]
[1649141279709,0.18786462,46650.0,46649.0,0.09431131]
[1649141285030,0.01179159,46650.0,46649.0,0.09431131]
[1649141286181,0.01179159,46650.0,46648.0,0.17134879]
[1649141286280,0.01179159,46650.0,46649.0,0.05414163]
[1649141286381,0.01179159,46650.0,46649.0,0.00023578]
[1649141287484,0.18786462,46650.0,46649.0,0.00023578]
[1649141287583,0.01179159,46650.0,46649.0,0.00023578]
[1649141292023,0.01779159,46650.0,46649.0,0.00023578]
[1649141298491,0.01779159,46650.0,46649.0,1.11493879]
[1649141298939,0.01779159,46650.0,46649.0,1.37579762]
[1649141299040,0.19029001,46654.0,46649.0,1.37579762]
[1649141299294,0.06859142,46656.0,46652.0,0.2]
[1649141299386,0.06859142,46656.0,46653.0,0.34621373]
[1649141299477,0.06859142,46656.0,46653.0,0.39978773]
[1649141299579,0.06859142,46656.0,46654.0,0.0999]
[1649141299682,0.30819844,46664.0,46656.0,0.8]
[1649141299777,0.30819844,46664.0,46661.0,0.15399345]
[1649141299879,0.30819844,46665.0,46656.0,0.8]
[1649141299980,0.30819844,46665.0,46663.0,0.05414163]
[1649141300081,0.2312193,46664.0,46657.0,0.0428]
[1649141300187,0.2312193,46664.0,46662.0,0.05414163]
[1649141300282,0.2312193,46664.0,46658.0,0.0428]
[1649141300485,0.2312193,46664.0,46661.0,0.053569]
[1649141301131,0.28179935,46663.0,46661.0,0.053569]
[1649141301233,0.28179935,46663.0,46661.0,0.10713874]
[1649141301833,0.3,46662.0,46661.0,0.20703874]
[1649141302535,0.28179935,46663.0,46661.0,0.20703874]
[1649141303322,0.28179935,46663.0,46662.0,0.5]
[1649141303522,0.58179935,46663.0,46662.0,0.1162528]
[1649141303821,0.58179935,46663.0,46661.0,0.15346974]
[1649141303922,0.3,46662.0,46661.0,0.15346974]
[1649141304222,0.30300176,46662.0,46661.0,0.1549135]
[1649141304924,0.62390076,46662.0,46661.0,0.1549135]
[1649141306224,0.62426541,46662.0,46661.0,0.1549135]
[1649141307423,0.62426541,46662.0,46661.0,0.3049135]
[1649141308173,0.84439164,46662.0,46661.0,0.3049135]
[1649141308875,0.52349264,46662.0,46661.0,0.3049135]
[1649141309278,0.22349264,46662.0,46661.0,0.3049135]
[1649141309583,0.00336641,46662.0,46661.0,0.3049135]
[1649141311210,0.32426541,46662.0,46661.0,0.3049135]
[1649141311310,0.00336641,46662.0,46661.0,0.3049135]
[1649141311712,0.22349264,46662.0,46661.0,0.3049135]
[1649141312266,0.00336641,46662.0,46661.0,0.3049135]
[1649141313215,0.32426541,46662.0,46661.0,0.1549135]
[1649141313316,0.00336641,46662.0,46661.0,0.3049135]
[1649141313516,0.00336641,46662.0,46661.0,0.2050135]
[1649141314563,0.17941875,46662.0,46661.0,0.2050135]
[1649141316167,0.17941875,46662.0,46660.0,0.07076346]
[1649141317776,0.17941875,46662.0,46661.0,0.05356974]
[1649141318216,0.17941875,46662.0,46661.0,0.0550135]
[1649141318615,0.00336641,46662.0,46661.0,0.0550135]
[1649141320672,0.17940763,46662.0,46661.0,0.0550135]
[1649141323319,0.00336641,46662.0,46661.0,0.0550135]
[1649141324470,0.17940763,46662.0,46661.0,0.0550135]
[1649141324672,0.00336641,46662.0,46661.0,0.0550135]
[1649141325868,0.17940763,46662.0,46661.0,0.0550135]
[1649141326418,0.17911508,46662.0,46661.0,0.0550135]
[1649141326569,0.17990643,46662.0,46661.0,0.0550135]
[1649141327320,0.00386521,46662.0,46661.0,0.0550135]
[1649141327422,0.17990643,46662.0,46661.0,0.0550135]
[1649141328420,0.17990643,46662.0,46661.0,0.05634673]
[1649141333768,0.17971731,46662.0,46661.0,0.05634673]
[1649141339378,0.00367609,46662.0,46661.0,0.05634673]
[1649141344226,0.22385914,46662.0,46661.0,0.05634673]
[1649141344318,0.00367609,46662.0,46661.0,0.05634673]
[1649141346277,0.00367609,46662.0,46660.0,0.03329431]
[1649141346577,0.22019407,46661.0,46660.0,0.03329431]
[1649141347728,0.22019407,46661.0,46660.0,0.14043378]
[1649141348915,0.22377465,46661.0,46660.0,0.14043378]
[1649141350818,0.22377465,46661.0,46660.0,0.14187784]
[1649141354259,0.22377465,46661.0,46660.0,0.19545484]
[1649141356519,0.22377465,46661.0,46660.0,0.14187784]
[1649141357570,0.00358058,46661.0,46660.0,0.14187784]
[1649141358375,0.22377465,46661.0,46660.0,0.14187784]
[1649141366393,0.00358058,46661.0,46660.0,0.14187784]
[1649141366495,0.22363107,46661.0,46660.0,0.14187784]
[1649141373780,0.00358058,46661.0,46660.0,0.14178811]
[1649141376154,0.0035092,46661.0,46660.0,0.14178811]
[1649141376955,0.00317084,46661.0,46660.0,0.14178811]
[1649141378068,0.2676403,46662.0,46661.0,0.00517228]
[1649141378169,0.00357971,46662.0,46661.0,0.00517228]
[1649141380972,0.00383983,46662.0,46661.0,0.00517228]
[1649141381326,0.32473883,46662.0,46661.0,0.00517228]
[1649141381424,0.00383983,46662.0,46661.0,0.00517228]
[1649141382773,0.32473883,46662.0,46661.0,0.00517228]
[1649141382924,0.00383983,46662.0,46661.0,0.00517228]
[1649141384128,0.32473883,46662.0,46661.0,0.00517228]
[1649141384425,0.00383983,46662.0,46661.0,0.00517228]
[1649141384529,0.32473883,46662.0,46661.0,0.00517228]
[1649141385133,0.00383983,46662.0,46661.0,0.00517228]
[1649141385229,0.32473883,46662.0,46661.0,0.00517228]
[1649141385329,0.32832127,46662.0,46661.0,0.00517228]
[1649141385482,0.00742227,46662.0,46661.0,0.00517228]
[1649141385983,0.32832127,46662.0,46661.0,0.00517228]
[1649141386083,0.00742227,46662.0,46661.0,0.00517228]
[1649141386183,0.32832127,46662.0,46661.0,0.00517228]
[1649141386385,0.00742227,46662.0,46661.0,0.00517228]
[1649141386484,0.32832127,46662.0,46661.0,0.00517228]
[1649141386587,0.00742227,46662.0,46661.0,0.00517228]
[1649141386786,0.32832127,46662.0,46661.0,0.00517228]
[1649141386986,0.00742227,46662.0,46661.0,0.00517228]
[1649141388340,0.00748749,46662.0,46661.0,0.00517228]
[1649141399707,0.00748749,46662.0,46661.0,0.00508599]
[1649141401730,0.0052574,46662.0,46661.0,0.00508599]
[1649141404429,0.00519218,46662.0,46661.0,0.00508599]
[1649141408335,0.00519218,46662.0,46661.0,0.30508599]
[1649141408435,0.00336877,46663.0,46662.0,0.01010836]
[1649141409734,0.003301,46663.0,46662.0,0.01010836]
[1649141412652,0.00650932,46663.0,46662.0,0.01010836]
[1649141418940,0.01003423,46663.0,46662.0,0.01010836]
[1649141428316,0.33093323,46663.0,46662.0,0.01010836]
[1649141428417,0.39214323,46663.0,46662.0,0.01010836]